[Event "*** Biggest EVER Titled Tuesday"]
[Site "Chess.com"]
[Date "2018.04.17"]
[Round "4"]
[White "Karina_Oparina"]
[Black "Vusatiuk_Vladimir"]
[Result "1-0"]
[WhiteElo "2154"]
[BlackElo "2197"]
[TimeControl "180+2"]
[EndTime "13:54:08 PDT"]
[Termination "Karina_Oparina won by checkmate"]

1. d4 {[%clk 0:02:59.7]} 1... d5 {[%clk 0:02:58]} 2. c4 {[%clk 0:02:59.4]} 2...
dxc4 {[%clk 0:02:58.5]} 3. Nf3 {[%clk 0:02:59.4]} 3... Nf6 {[%clk 0:02:54.5]} 4.
e3 {[%clk 0:03:00.2]} 4... e6 {[%clk 0:02:55.2]} 5. Bxc4 {[%clk 0:03:00.7]} 5...
a6 {[%clk 0:02:56.2]} 6. a4 {[%clk 0:03:01.2]} 6... c5 {[%clk 0:02:55.8]} 7. O-O
{[%clk 0:03:01.6]} 7... Nc6 {[%clk 0:02:56.1]} 8. Qe2 {[%clk 0:03:02.7]} 8...
cxd4 {[%clk 0:02:53.6]} 9. Rd1 {[%clk 0:03:03.6]} 9... Qc7 {[%clk 0:02:53.9]}
10. exd4 {[%clk 0:03:03.8]} 10... Be7 {[%clk 0:02:53.4]} 11. Nc3 {[%clk
0:03:02.1]} 11... O-O {[%clk 0:02:54.2]} 12. Ne5 {[%clk 0:02:46.3]} 12... b6
{[%clk 0:02:37.6]} 13. Bf4 {[%clk 0:02:30.6]} 13... Nxe5 {[%clk 0:02:24.6]} 14.
dxe5 {[%clk 0:02:05.1]} 14... Nd7 {[%clk 0:02:17.9]} 15. Rac1 {[%clk 0:01:55.2]}
15... Bb7 {[%clk 0:02:09.6]} 16. Bd3 {[%clk 0:01:43.9]} 16... Qb8 {[%clk
0:00:44.5]} 17. Bxh7+ {[%clk 0:01:26.8]} 17... Kxh7 {[%clk 0:00:44.2]} 18. Qh5+
{[%clk 0:01:23.5]} 18... Kg8 {[%clk 0:00:44.4]} 19. Rxd7 {[%clk 0:01:15.3]}
19... Bc5 {[%clk 0:00:44.4]} 20. Rd3 {[%clk 0:01:11.9]} 20... g6 {[%clk
0:00:34]} 21. Qh6 {[%clk 0:01:08.8]} 21... Bxg2 {[%clk 0:00:29.1]} 22. Kxg2
{[%clk 0:01:04.6]} 22... Qb7+ {[%clk 0:00:29.9]} 23. Kg1 {[%clk 0:00:59.6]}
23... f6 {[%clk 0:00:08.3]} 24. Qxg6+ {[%clk 0:00:46]} 24... Qg7 {[%clk
0:00:08.3]} 25. Rg3 {[%clk 0:00:42.7]} 25... Qxg6 {[%clk 0:00:08.9]} 26. Rxg6+
{[%clk 0:00:43.2]} 26... Kh7 {[%clk 0:00:10.2]} 27. Rh6+ {[%clk 0:00:40.9]}
27... Kg7 {[%clk 0:00:11]} 28. exf6+ {[%clk 0:00:39.3]} 28... Rxf6 {[%clk
0:00:12.2]} 29. Rxf6 {[%clk 0:00:40.2]} 29... Kxf6 {[%clk 0:00:13.7]} 30. Ne4+
{[%clk 0:00:41.3]} 30... Kf5 {[%clk 0:00:14.6]} 31. Nxc5 {[%clk 0:00:42.4]}
31... bxc5 {[%clk 0:00:16.2]} 32. Be3 {[%clk 0:00:43.3]} 32... Rb8 {[%clk
0:00:14.6]} 33. Rxc5+ {[%clk 0:00:43.5]} 33... Ke4 {[%clk 0:00:16]} 34. Rc4+
{[%clk 0:00:42.5]} 34... Kf3 {[%clk 0:00:17.3]} 35. Rf4+ {[%clk 0:00:41.2]}
35... Ke2 {[%clk 0:00:17.5]} 36. h4 {[%clk 0:00:33.1]} 36... e5 {[%clk
0:00:18.6]} 37. Rg4 {[%clk 0:00:29.4]} 37... Rxb2 {[%clk 0:00:18.2]} 38. Kg2
{[%clk 0:00:25.3]} 38... Rb7 {[%clk 0:00:14.2]} 39. h5 {[%clk 0:00:25.3]} 39...
e4 {[%clk 0:00:15.1]} 40. h6 {[%clk 0:00:25]} 40... Rh7 {[%clk 0:00:15.2]} 41.
Rxe4 {[%clk 0:00:23.4]} 41... Kd3 {[%clk 0:00:11.8]} 42. Re6 {[%clk 0:00:23.5]}
42... a5 {[%clk 0:00:12.8]} 43. Ra6 {[%clk 0:00:23]} 43... Ke4 {[%clk
0:00:12.5]} 44. Rxa5 {[%clk 0:00:23.5]} 44... Kd3 {[%clk 0:00:10.3]} 45. Rh5
{[%clk 0:00:22.9]} 45... Ke4 {[%clk 0:00:10.9]} 46. a5 {[%clk 0:00:22.8]} 46...
Kd3 {[%clk 0:00:06.2]} 47. a6 {[%clk 0:00:23.8]} 47... Ke4 {[%clk 0:00:07.1]}
48. a7 {[%clk 0:00:24.7]} 48... Rxa7 {[%clk 0:00:07.5]} 49. Bxa7 {[%clk
0:00:24.8]} 49... Kf4 {[%clk 0:00:09]} 50. h7 {[%clk 0:00:24.8]} 50... Kg4
{[%clk 0:00:10.3]} 51. h8=Q {[%clk 0:00:23.6]} 51... Kf4 {[%clk 0:00:10.9]} 52.
Qd4# {[%clk 0:00:23.8]} 1-0

[Event "*** Biggest EVER Titled Tuesday"]
[Site "Chess.com"]
[Date "2018.04.17"]
[Round "4"]
[White "metra93"]
[Black "djano"]
[Result "0-1"]
[WhiteElo "2307"]
[BlackElo "2449"]
[TimeControl "180+2"]
[EndTime "13:54:09 PDT"]
[Termination "djano won on time"]

1. d4 {[%clk 0:03:01.9]} 1... Nf6 {[%clk 0:02:59.3]} 2. c4 {[%clk 0:03:02.3]}
2... c5 {[%clk 0:03:00.7]} 3. d5 {[%clk 0:03:00.9]} 3... b5 {[%clk 0:03:01.6]}
4. Qc2 {[%clk 0:03:00.7]} 4... bxc4 {[%clk 0:03:01.8]} 5. e4 {[%clk 0:02:55.9]}
5... d6 {[%clk 0:03:01.8]} 6. Nf3 {[%clk 0:02:55.3]} 6... g6 {[%clk 0:03:00]} 7.
Nfd2 {[%clk 0:02:55.9]} 7... Bg7 {[%clk 0:02:58.8]} 8. Nxc4 {[%clk 0:02:56.5]}
8... O-O {[%clk 0:02:59.2]} 9. Nc3 {[%clk 0:02:57.6]} 9... e6 {[%clk 0:02:59.2]}
10. Be2 {[%clk 0:02:55.6]} 10... exd5 {[%clk 0:02:58.9]} 11. exd5 {[%clk
0:02:55.9]} 11... Bf5 {[%clk 0:02:50.8]} 12. Qd1 {[%clk 0:02:46.6]} 12... Na6
{[%clk 0:02:27.5]} 13. Ne3 {[%clk 0:02:30.9]} 13... Bc8 {[%clk 0:02:26.1]} 14.
O-O {[%clk 0:02:30.1]} 14... Rb8 {[%clk 0:02:26.2]} 15. Nc4 {[%clk 0:02:26.6]}
15... Re8 {[%clk 0:02:24.5]} 16. Bf4 {[%clk 0:02:25.2]} 16... Bf8 {[%clk
0:02:11.8]} 17. Qd2 {[%clk 0:02:07.4]} 17... Ne4 {[%clk 0:02:07.2]} 18. Nxe4
{[%clk 0:02:06.2]} 18... Rxe4 {[%clk 0:02:09.1]} 19. Be3 {[%clk 0:01:32.2]}
19... Nc7 {[%clk 0:01:50.5]} 20. b3 {[%clk 0:01:28.4]} 20... Bg7 {[%clk
0:01:47.6]} 21. Rad1 {[%clk 0:01:28.5]} 21... Bb7 {[%clk 0:01:45.5]} 22. Bf3
{[%clk 0:01:29.5]} 22... Re8 {[%clk 0:01:40]} 23. Bf4 {[%clk 0:01:30.6]} 23...
Nb5 {[%clk 0:01:10.1]} 24. a4 {[%clk 0:01:07.5]} 24... Nd4 {[%clk 0:01:10.2]}
25. Nxd6 {[%clk 0:01:08.1]} 25... Nxf3+ {[%clk 0:01:05.8]} 26. gxf3 {[%clk
0:01:07.5]} 26... Re5 {[%clk 0:00:51.3]} 27. Bxe5 {[%clk 0:01:00.9]} 27... Bxe5
{[%clk 0:00:52]} 28. Nc4 {[%clk 0:01:01.7]} 28... Bd4 {[%clk 0:00:46.6]} 29. Ne3
{[%clk 0:00:52.7]} 29... Bxd5 {[%clk 0:00:47.1]} 30. Nxd5 {[%clk 0:00:51.5]}
30... Qxd5 {[%clk 0:00:48.9]} 31. Rfe1 {[%clk 0:00:37]} 31... Rxb3 {[%clk
0:00:43.2]} 32. Qh6 {[%clk 0:00:28]} 32... Rb8 {[%clk 0:00:38.3]} 33. Rd2 {[%clk
0:00:16.4]} 33... Qxf3 {[%clk 0:00:29.1]} 34. Rde2 {[%clk 0:00:12.9]} 34... Rf8
{[%clk 0:00:30.1]} 35. h3 {[%clk 0:00:09.3]} 35... c4 {[%clk 0:00:27.5]} 36. Qh4
{[%clk 0:00:07.4]} 36... Bf6 {[%clk 0:00:25.7]} 37. Qxc4 {[%clk 0:00:07.7]}
37... Qxh3 {[%clk 0:00:25.6]} 38. Re8 {[%clk 0:00:08.2]} 38... Bg7 {[%clk
0:00:21.3]} 39. Rxf8+ {[%clk 0:00:08.6]} 39... Bxf8 {[%clk 0:00:21.5]} 40. Re8
{[%clk 0:00:09.1]} 40... Qd7 {[%clk 0:00:20.9]} 41. Rc8 {[%clk 0:00:06.6]} 41...
Kg7 {[%clk 0:00:18.5]} 42. Qc3+ {[%clk 0:00:07.1]} 42... Kg8 {[%clk 0:00:15.7]}
43. Qc4 {[%clk 0:00:02.9]} 43... Kg7 {[%clk 0:00:14.2]} 0-1

[Event "*** Biggest EVER Titled Tuesday"]
[Site "Chess.com"]
[Date "2018.04.17"]
[Round "4"]
[White "wadsy27"]
[Black "PawnEatingZombie"]
[Result "1/2-1/2"]
[WhiteElo "2128"]
[BlackElo "2004"]
[TimeControl "180+2"]
[EndTime "13:54:11 PDT"]
[Termination "Game drawn - insufficient material"]

1. g3 {[%clk 0:02:59.1]} 1... d5 {[%clk 0:02:59.5]} 2. Nf3 {[%clk 0:02:59.4]}
2... Nf6 {[%clk 0:03:00.6]} 3. Bg2 {[%clk 0:03:00.7]} 3... e6 {[%clk 0:03:01.1]}
4. c4 {[%clk 0:03:01.8]} 4... Be7 {[%clk 0:02:59.7]} 5. O-O {[%clk 0:03:02.4]}
5... O-O {[%clk 0:02:59.9]} 6. b3 {[%clk 0:03:03.4]} 6... d4 {[%clk 0:02:55.5]}
7. e3 {[%clk 0:02:58.2]} 7... c5 {[%clk 0:02:56.6]} 8. exd4 {[%clk 0:02:58.6]}
8... cxd4 {[%clk 0:02:58.5]} 9. Bb2 {[%clk 0:02:59.5]} 9... Nc6 {[%clk
0:02:59.6]} 10. Re1 {[%clk 0:03:00.5]} 10... Ne8 {[%clk 0:02:42.9]} 11. Ne5
{[%clk 0:03:00.2]} 11... Nxe5 {[%clk 0:02:41.4]} 12. Rxe5 {[%clk 0:03:01.2]}
12... f6 {[%clk 0:02:42.5]} 13. Re1 {[%clk 0:03:01.6]} 13... e5 {[%clk
0:02:43.1]} 14. d3 {[%clk 0:03:03.1]} 14... Bc5 {[%clk 0:02:22.3]} 15. Qd2
{[%clk 0:03:00.3]} 15... Qd6 {[%clk 0:02:22.3]} 16. a3 {[%clk 0:02:49.4]} 16...
a5 {[%clk 0:02:22.6]} 17. Qe2 {[%clk 0:02:50.4]} 17... Nc7 {[%clk 0:02:13.6]}
18. Nd2 {[%clk 0:02:45.5]} 18... Rb8 {[%clk 0:02:06.9]} 19. Ne4 {[%clk
0:02:42.3]} 19... Qe7 {[%clk 0:02:07.3]} 20. Nxc5 {[%clk 0:02:43]} 20... Qxc5
{[%clk 0:02:07.5]} 21. b4 {[%clk 0:02:43.6]} 21... Qd6 {[%clk 0:02:02]} 22. c5
{[%clk 0:02:19.4]} 22... Qe6 {[%clk 0:01:50.8]} 23. f4 {[%clk 0:02:09.9]} 23...
exf4 {[%clk 0:01:35.6]} 24. gxf4 {[%clk 0:02:07.5]} 24... Qxe2 {[%clk
0:01:33.6]} 25. Rxe2 {[%clk 0:02:08.2]} 25... Bf5 {[%clk 0:01:32.7]} 26. Bxd4
{[%clk 0:01:50.5]} 26... Rfd8 {[%clk 0:01:07.2]} 27. Bf2 {[%clk 0:01:37]} 27...
Bxd3 {[%clk 0:00:55.7]} 28. Re7 {[%clk 0:01:37.5]} 28... Nd5 {[%clk 0:00:56.2]}
29. Bxd5+ {[%clk 0:01:22]} 29... Rxd5 {[%clk 0:00:56.9]} 30. Rd1 {[%clk
0:01:21.8]} 30... axb4 {[%clk 0:00:54.5]} 31. axb4 {[%clk 0:01:22.2]} 31... Bc4
{[%clk 0:00:52.6]} 32. Rde1 {[%clk 0:00:58.1]} 32... Bb5 {[%clk 0:00:39.5]} 33.
Bg3 {[%clk 0:00:34]} 33... Rd7 {[%clk 0:00:32.9]} 34. f5 {[%clk 0:00:29.3]}
34... Rbd8 {[%clk 0:00:24.1]} 35. Bd6 {[%clk 0:00:27]} 35... Rxe7 {[%clk
0:00:21.9]} 36. Rxe7 {[%clk 0:00:27.8]} 36... Bc6 {[%clk 0:00:22.7]} 37. b5
{[%clk 0:00:28.3]} 37... Bxb5 {[%clk 0:00:22.9]} 38. Rxb7 {[%clk 0:00:29.1]}
38... Bc6 {[%clk 0:00:22.4]} 39. Rc7 {[%clk 0:00:29.6]} 39... Be4 {[%clk
0:00:22.9]} 40. Be7 {[%clk 0:00:19.6]} 40... Re8 {[%clk 0:00:22]} 41. c6 {[%clk
0:00:17.2]} 41... Bxf5 {[%clk 0:00:22.4]} 42. Bc5 {[%clk 0:00:15.3]} 42... Rc8
{[%clk 0:00:23]} 43. Rxc8+ {[%clk 0:00:14.2]} 43... Bxc8 {[%clk 0:00:24.9]} 44.
Kf2 {[%clk 0:00:15.2]} 44... Kf7 {[%clk 0:00:26.3]} 45. c7 {[%clk 0:00:16.3]}
45... Ke6 {[%clk 0:00:27.7]} 46. Be3 {[%clk 0:00:10.9]} 46... g5 {[%clk
0:00:27.1]} 47. Kg3 {[%clk 0:00:10.5]} 47... Kf5 {[%clk 0:00:26.4]} 48. h4
{[%clk 0:00:10.8]} 48... h6 {[%clk 0:00:26.8]} 49. hxg5 {[%clk 0:00:10.8]} 49...
hxg5 {[%clk 0:00:28.7]} 50. Bd4 {[%clk 0:00:09.7]} 50... Kg6 {[%clk 0:00:28.9]}
51. Bb2 {[%clk 0:00:10.3]} 51... f5 {[%clk 0:00:30.1]} 52. Bc1 {[%clk
0:00:11.5]} 52... Kf6 {[%clk 0:00:24]} 53. Bb2+ {[%clk 0:00:12.1]} 53... Ke6
{[%clk 0:00:24.7]} 54. Bc1 {[%clk 0:00:13.2]} 54... f4+ {[%clk 0:00:21.7]} 55.
Bxf4 {[%clk 0:00:13.8]} 55... gxf4+ {[%clk 0:00:22.8]} 56. Kxf4 {[%clk
0:00:15.2]} 56... Kd7 {[%clk 0:00:24.3]} 57. Ke4 {[%clk 0:00:16.6]} 57... Kxc7
{[%clk 0:00:26.2]} 1/2-1/2

[Event "*** Biggest EVER Titled Tuesday"]
[Site "Chess.com"]
[Date "2018.04.17"]
[Round "4"]
[White "Anar_Aliakbarov"]
[Black "ABDELAZEEZ-M"]
[Result "0-1"]
[WhiteElo "2382"]
[BlackElo "2296"]
[TimeControl "180+2"]
[EndTime "13:54:14 PDT"]
[Termination "ABDELAZEEZ-M won on time"]

1. d4 {[%clk 0:03:01.9]} 1... d5 {[%clk 0:03:00.3]} 2. c4 {[%clk 0:03:02.6]}
2... c6 {[%clk 0:03:01]} 3. Nf3 {[%clk 0:03:02.6]} 3... Nf6 {[%clk 0:03:01.8]}
4. e3 {[%clk 0:02:53]} 4... Bg4 {[%clk 0:02:55.1]} 5. Qb3 {[%clk 0:02:52.6]}
5... Qb6 {[%clk 0:02:53]} 6. Ne5 {[%clk 0:02:53.2]} 6... e6 {[%clk 0:02:35.8]}
7. Nxg4 {[%clk 0:02:52]} 7... Nxg4 {[%clk 0:02:36.4]} 8. c5 {[%clk 0:02:53.1]}
8... Qc7 {[%clk 0:02:36.1]} 9. Qd1 {[%clk 0:02:53.1]} 9... f5 {[%clk 0:02:36.8]}
10. Be2 {[%clk 0:02:49.9]} 10... Nf6 {[%clk 0:02:37.3]} 11. Nc3 {[%clk
0:02:47.8]} 11... Nbd7 {[%clk 0:02:32.5]} 12. b4 {[%clk 0:02:47.1]} 12... e5
{[%clk 0:02:31.8]} 13. b5 {[%clk 0:02:46.8]} 13... exd4 {[%clk 0:02:31.3]} 14.
exd4 {[%clk 0:02:48.7]} 14... Be7 {[%clk 0:02:31.4]} 15. g3 {[%clk 0:02:47.7]}
15... O-O {[%clk 0:02:28]} 16. O-O {[%clk 0:02:46.8]} 16... Ne4 {[%clk
0:02:28.4]} 17. Nxe4 {[%clk 0:02:41.1]} 17... fxe4 {[%clk 0:02:29.1]} 18. Bf4
{[%clk 0:02:39.3]} 18... Rxf4 {[%clk 0:02:28.9]} 19. gxf4 {[%clk 0:02:39.7]}
19... Qxf4 {[%clk 0:02:30.2]} 20. bxc6 {[%clk 0:02:40.5]} 20... bxc6 {[%clk
0:02:22.7]} 21. Kh1 {[%clk 0:02:37]} 21... Rf8 {[%clk 0:02:17.6]} 22. f3 {[%clk
0:02:34.4]} 22... Nf6 {[%clk 0:02:14.7]} 23. fxe4 {[%clk 0:02:32.5]} 23... Qxe4+
{[%clk 0:02:15.5]} 24. Bf3 {[%clk 0:02:33.9]} 24... Qh4 {[%clk 0:02:16.3]} 25.
Qe1 {[%clk 0:02:28.2]} 25... Qxd4 {[%clk 0:02:15.6]} 26. Qxe7 {[%clk 0:02:25.8]}
26... Re8 {[%clk 0:02:02.5]} 27. Qc7 {[%clk 0:02:08.6]} 27... Ne4 {[%clk
0:02:01.9]} 28. Qf4 {[%clk 0:00:52.8]} 28... Rf8 {[%clk 0:01:54.2]} 29. Qg4
{[%clk 0:00:29.6]} 29... Nf2+ {[%clk 0:01:43.8]} 30. Rxf2 {[%clk 0:00:30.6]}
30... Qxf2 {[%clk 0:01:44.9]} 31. Bg2 {[%clk 0:00:27.7]} 31... Qxc5 {[%clk
0:01:42.7]} 32. Qe6+ {[%clk 0:00:26.6]} 32... Kh8 {[%clk 0:01:43.4]} 33. Re1
{[%clk 0:00:24.8]} 33... h6 {[%clk 0:01:22.5]} 34. h3 {[%clk 0:00:23.1]} 34...
Qf2 {[%clk 0:01:13.8]} 35. Re2 {[%clk 0:00:21.5]} 35... Qf4 {[%clk 0:01:11.7]}
36. Qxc6 {[%clk 0:00:21.1]} 36... d4 {[%clk 0:01:11.4]} 37. Re8 {[%clk 0:00:21]}
37... d3 {[%clk 0:01:07.2]} 38. Qe4 {[%clk 0:00:14.3]} 38... Qc1+ {[%clk
0:01:05.4]} 39. Kh2 {[%clk 0:00:14.6]} 39... Qc7+ {[%clk 0:01:05]} 40. Kh1
{[%clk 0:00:12.5]} 40... Qc1+ {[%clk 0:01:04.8]} 41. Kh2 {[%clk 0:00:12.5]}
41... Qc7+ {[%clk 0:01:04.9]} 42. Kh1 {[%clk 0:00:07.9]} 42... Qc1+ {[%clk
0:01:05]} 43. Qe1 {[%clk 0:00:06.9]} 43... Qf4 {[%clk 0:00:42.2]} 44. Rxf8+
{[%clk 0:00:04.9]} 44... Qxf8 {[%clk 0:00:42.8]} 45. Qd2 {[%clk 0:00:05.2]}
45... Qf5 {[%clk 0:00:39]} 46. Kg1 {[%clk 0:00:04.5]} 46... Qc5+ {[%clk
0:00:39.4]} 47. Kf1 {[%clk 0:00:04.5]} 47... Qf5+ {[%clk 0:00:35.3]} 48. Ke1
{[%clk 0:00:05.8]} 48... Qe5+ {[%clk 0:00:34]} 49. Kf2 {[%clk 0:00:04.8]} 49...
Qd4+ {[%clk 0:00:33.8]} 0-1

[Event "*** Biggest EVER Titled Tuesday"]
[Site "Chess.com"]
[Date "2018.04.17"]
[Round "4"]
[White "AlexTriapishko"]
[Black "PchelkinVK"]
[Result "1-0"]
[WhiteElo "2691"]
[BlackElo "2424"]
[TimeControl "180+2"]
[EndTime "13:54:14 PDT"]
[Termination "AlexTriapishko won by resignation"]

1. e4 {[%clk 0:02:58.5]} 1... e6 {[%clk 0:03:01]} 2. d4 {[%clk 0:02:58.8]} 2...
d5 {[%clk 0:03:02.1]} 3. Bd3 {[%clk 0:02:58]} 3... c5 {[%clk 0:02:51]} 4. exd5
{[%clk 0:02:56.5]} 4... Qxd5 {[%clk 0:02:43.5]} 5. Nc3 {[%clk 0:02:56.9]} 5...
Qxd4 {[%clk 0:02:33.9]} 6. Nb5 {[%clk 0:02:55.8]} 6... Qd8 {[%clk 0:02:14.7]} 7.
Bf4 {[%clk 0:02:54.7]} 7... Na6 {[%clk 0:02:11.9]} 8. Nh3 {[%clk 0:02:55.8]}
8... Nf6 {[%clk 0:01:53]} 9. Qe2 {[%clk 0:02:54.7]} 9... Nd5 {[%clk 0:01:46]}
10. Bg3 {[%clk 0:02:44.1]} 10... Be7 {[%clk 0:01:39.7]} 11. O-O-O {[%clk
0:02:34.1]} 11... Qa5 {[%clk 0:01:36.3]} 12. a3 {[%clk 0:02:31]} 12... O-O
{[%clk 0:01:31.8]} 13. c4 {[%clk 0:02:30.7]} 13... Nf6 {[%clk 0:01:06]} 14. Ng5
{[%clk 0:02:27.9]} 14... h6 {[%clk 0:00:51.6]} 15. h4 {[%clk 0:02:28.1]} 15...
Rd8 {[%clk 0:00:43.7]} 16. Be5 {[%clk 0:02:17.6]} 16... Bd7 {[%clk 0:00:42.8]}
17. Nd6 {[%clk 0:02:07.9]} 17... Bxd6 {[%clk 0:00:38.7]} 18. Bxd6 {[%clk
0:01:59.3]} 18... Ba4 {[%clk 0:00:39.3]} 19. Bc2 {[%clk 0:01:33.5]} 19... Bxc2
{[%clk 0:00:36.7]} 20. Qxc2 {[%clk 0:01:35.4]} 20... Qb6 {[%clk 0:00:05.1]} 21.
Be7 {[%clk 0:01:18.3]} 21... Rxd1+ {[%clk 0:00:05.3]} 22. Qxd1 {[%clk
0:01:19.1]} 22... Qc7 {[%clk 0:00:02.4]} 23. Bd6 {[%clk 0:01:13.2]} 23... Qc6
{[%clk 0:00:03.5]} 24. Be5 {[%clk 0:01:03.8]} 24... hxg5 {[%clk 0:00:03.9]} 25.
hxg5 {[%clk 0:01:02.7]} 25... Ne8 {[%clk 0:00:05.4]} 26. Qh5 {[%clk 0:00:45.3]}
26... Kf8 {[%clk 0:00:06.1]} 27. Rh3 {[%clk 0:00:46.1]} 27... Nac7 {[%clk
0:00:06.2]} 28. Rf3 {[%clk 0:00:46.2]} 28... Qd7 {[%clk 0:00:07.3]} 29. Rf6
{[%clk 0:00:31.8]} 29... Rd8 {[%clk 0:00:07.7]} 30. Rh6 {[%clk 0:00:17.7]} 30...
Qd2+ {[%clk 0:00:07.9]} 31. Kb1 {[%clk 0:00:19.2]} 31... Qd1+ {[%clk 0:00:09.3]}
32. Ka2 {[%clk 0:00:19.1]} 32... gxh6 {[%clk 0:00:10.6]} 33. Qxh6+ {[%clk
0:00:18.2]} 33... Ke7 {[%clk 0:00:12.5]} 34. g6 {[%clk 0:00:19.6]} 34... fxg6
{[%clk 0:00:12.1]} 35. Qh7+ {[%clk 0:00:19.7]} 35... Kf8 {[%clk 0:00:11.8]} 36.
Qh8+ {[%clk 0:00:20.1]} 36... Ke7 {[%clk 0:00:13]} 37. Qh7+ {[%clk 0:00:19.5]}
37... Ng7 {[%clk 0:00:13]} 38. Qxg7+ {[%clk 0:00:19.6]} 38... Ke8 {[%clk
0:00:14.3]} 39. Bf6 {[%clk 0:00:16.5]} 39... Nd5 {[%clk 0:00:08.5]} 40. Qg8+
{[%clk 0:00:15.9]} 40... Kd7 {[%clk 0:00:09.2]} 41. Qxd8+ {[%clk 0:00:17.3]}
41... Kc6 {[%clk 0:00:10.1]} 42. cxd5+ {[%clk 0:00:17.7]} 42... Qxd5+ {[%clk
0:00:10.5]} 1-0

[Event "*** Biggest EVER Titled Tuesday"]
[Site "Chess.com"]
[Date "2018.04.17"]
[Round "4"]
[White "goldenspine"]
[Black "catalin009"]
[Result "0-1"]
[WhiteElo "2265"]
[BlackElo "2417"]
[TimeControl "180+2"]
[EndTime "13:54:24 PDT"]
[Termination "catalin009 won by checkmate"]

1. e4 {[%clk 0:03:01.9]} 1... c5 {[%clk 0:03:00.6]} 2. Nf3 {[%clk 0:03:03]} 2...
Nc6 {[%clk 0:03:01.9]} 3. d3 {[%clk 0:03:04.6]} 3... g6 {[%clk 0:03:01.2]} 4. g3
{[%clk 0:03:06.1]} 4... Bg7 {[%clk 0:03:02.5]} 5. Bg2 {[%clk 0:03:07.7]} 5... d6
{[%clk 0:03:03.4]} 6. O-O {[%clk 0:03:09.1]} 6... e5 {[%clk 0:03:04.8]} 7. Be3
{[%clk 0:03:09.6]} 7... Nge7 {[%clk 0:03:05.4]} 8. a4 {[%clk 0:03:11.2]} 8...
O-O {[%clk 0:03:05.5]} 9. h4 {[%clk 0:03:11.1]} 9... h6 {[%clk 0:03:04.2]} 10.
Nbd2 {[%clk 0:03:11.3]} 10... Be6 {[%clk 0:03:03.3]} 11. Nc4 {[%clk 0:03:11.4]}
11... f5 {[%clk 0:03:03]} 12. Re1 {[%clk 0:03:10.4]} 12... fxe4 {[%clk
0:03:03.2]} 13. Nfd2 {[%clk 0:03:00]} 13... d5 {[%clk 0:02:54.4]} 14. Bxc5
{[%clk 0:02:47.7]} 14... dxc4 {[%clk 0:02:53.6]} 15. dxc4 {[%clk 0:02:43.2]}
15... Nd4 {[%clk 0:02:25.6]} 16. Nxe4 {[%clk 0:01:48.2]} 16... Bxc4 {[%clk
0:02:13.3]} 17. c3 {[%clk 0:01:40.6]} 17... Ndc6 {[%clk 0:02:03.4]} 18. Nd6
{[%clk 0:01:38.1]} 18... Be6 {[%clk 0:01:58.4]} 19. b4 {[%clk 0:01:28.6]} 19...
Qc7 {[%clk 0:01:40.4]} 20. Nb5 {[%clk 0:01:05.7]} 20... Qd8 {[%clk 0:01:27.8]}
21. Qe2 {[%clk 0:00:49.3]} 21... a6 {[%clk 0:00:55.8]} 22. Rad1 {[%clk
0:00:48.7]} 22... Qc8 {[%clk 0:00:46.1]} 23. Nd6 {[%clk 0:00:45.9]} 23... Qc7
{[%clk 0:00:47.4]} 24. a5 {[%clk 0:00:20.9]} 24... Nxa5 {[%clk 0:00:29.9]} 25.
Qe3 {[%clk 0:00:15]} 25... Nac6 {[%clk 0:00:10.6]} 26. Bb6 {[%clk 0:00:15.8]}
26... Qb8 {[%clk 0:00:11.5]} 27. Ne4 {[%clk 0:00:16.8]} 27... Qe8 {[%clk
0:00:11.4]} 28. Nc5 {[%clk 0:00:17.2]} 28... Bc4 {[%clk 0:00:11.3]} 29. Nxb7
{[%clk 0:00:17.3]} 29... Qf7 {[%clk 0:00:11.5]} 30. Nd6 {[%clk 0:00:18.3]} 30...
Qe6 {[%clk 0:00:12.8]} 31. Nxc4 {[%clk 0:00:16.9]} 31... Qxc4 {[%clk 0:00:13.4]}
32. Rd7 {[%clk 0:00:17.5]} 32... Kh7 {[%clk 0:00:09.6]} 33. Bc5 {[%clk
0:00:16.9]} 33... Qe6 {[%clk 0:00:10.5]} 34. Red1 {[%clk 0:00:15.5]} 34... Nf5
{[%clk 0:00:11.6]} 35. Qe4 {[%clk 0:00:15.4]} 35... Nce7 {[%clk 0:00:08.2]} 36.
g4 {[%clk 0:00:13.7]} 36... Nxh4 {[%clk 0:00:04.2]} 37. Rxe7 {[%clk 0:00:13.2]}
37... Qf6 {[%clk 0:00:05.5]} 38. Rxg7+ {[%clk 0:00:11.1]} 38... Qxg7 {[%clk
0:00:03.5]} 39. Bxf8 {[%clk 0:00:12.1]} 39... Rxf8 {[%clk 0:00:04.6]} 40. Qb7
{[%clk 0:00:13.2]} 40... Rf7 {[%clk 0:00:05.3]} 41. Qxa6 {[%clk 0:00:13.1]}
41... Nxg2 {[%clk 0:00:05.2]} 42. Kxg2 {[%clk 0:00:15]} 42... e4 {[%clk
0:00:06.3]} 43. Qb5 {[%clk 0:00:14.7]} 43... Qxc3 {[%clk 0:00:06.3]} 44. Qd5
{[%clk 0:00:15.7]} 44... Qf3+ {[%clk 0:00:07.3]} 45. Kg1 {[%clk 0:00:13.6]}
45... Qxf2+ {[%clk 0:00:08.6]} 46. Kh1 {[%clk 0:00:15]} 46... Qf3+ {[%clk
0:00:09.6]} 47. Kg1 {[%clk 0:00:16.1]} 47... Qxg4+ {[%clk 0:00:11.1]} 48. Kh1
{[%clk 0:00:16.5]} 48... Qf3+ {[%clk 0:00:12.1]} 49. Kg1 {[%clk 0:00:17.8]}
49... Qf2+ {[%clk 0:00:13.3]} 50. Kh1 {[%clk 0:00:19.1]} 50... Qf3+ {[%clk
0:00:12.7]} 51. Kg1 {[%clk 0:00:20.1]} 51... h5 {[%clk 0:00:14]} 52. Qg5 {[%clk
0:00:18]} 52... e3 {[%clk 0:00:12.6]} 53. Rd6 {[%clk 0:00:16.5]} 53... Qf2+
{[%clk 0:00:11.5]} 54. Kh1 {[%clk 0:00:17.6]} 54... Qf1+ {[%clk 0:00:12.6]} 55.
Kh2 {[%clk 0:00:18.4]} 55... Rf2+ {[%clk 0:00:13.3]} 56. Kg3 {[%clk 0:00:19.7]}
56... Qg2+ {[%clk 0:00:14.4]} 57. Kh4 {[%clk 0:00:20.8]} 57... Qh2# {[%clk
0:00:15.5]} 0-1